fUSD/lending_fUSD_20250720
["ID","MTS","AMOUNT","RATE_DAILY","PERIOD"]
[373501914,1753023072991,-899.23,0.00019506,2]
[373501915,1753023073001,-4165.45,0.00019506,2]
[373501916,1753023073010,-1013.99,0.00019506,2]
[373501917,1753023073020,-974.54,0.00019506,2]
[373501918,1753023073029,-2012.77,0.00019506,2]
[373501919,1753023073039,-6921.75,0.00019506,2]
[373501920,1753023073049,-3262.14,0.00019506,2]
[373501921,1753023073058,-480.0,0.00019506,2]
[373501922,1753023073069,-480.0,0.00019506,2]
[373501923,1753023073078,-480.0,0.00019506,2]
[373501924,1753023073087,-480.0,0.00019506,2]
[373501925,1753023073097,-1002.77,0.00019506,2]
[373501926,1753023073107,-750.41,0.00019506,2]
[373501927,1753023073117,-1492.98,0.00019506,2]
[373501928,1753023073126,-3089.44,0.00019506,2]
[373501929,1753023073136,-480.0,0.00019506,2]
[373501930,1753023073146,-1426.42,0.00019506,2]
[373501931,1753023073155,-480.0,0.00019506,2]
[373501932,1753023073164,-2303.64,0.00019506,2]
[373501933,1753023073174,-1692.61,0.00019506,2]
[373501934,1753023073184,-480.0,0.00019506,2]
[373501935,1753023073193,-320.0,0.00019506,2]
[373501936,1753023073202,-1344.12,0.00019506,2]
[373501937,1753023073212,-634.47,0.00019506,2]
[373501938,1753023073222,-1295.64,0.00019506,2]
[373501939,1753023073233,-480.0,0.00019506,2]
[373501940,1753023073243,-2457.59,0.00019506,2]
[373501941,1753023073252,-480.0,0.00019506,2]
[373501942,1753023073262,-3531.56,0.00019506,2]
[373501943,1753023073272,-637.76,0.00019506,2]
[373501944,1753023073282,-260.0,0.00019506,2]
[373501945,1753023073292,-480.0,0.00019506,2]
[373501946,1753023073302,-1689.26,0.00019506,2]
[373501947,1753023073313,-1571.45,0.00019506,2]
[373501948,1753023073324,-1564.41,0.00019506,2]
[373501949,1753023073333,-814.45,0.00019506,2]
[373501950,1753023073343,-514.68,0.00019506,2]
[373501951,1753023073354,-3084.79,0.00019506,2]
[373501952,1753023073366,-480.0,0.00019506,2]
[373501953,1753023073376,-334.3,0.00019506,2]
[373501954,1753023073387,-3056.95,0.00019506,2]
[373501955,1753023073398,-480.0,0.00019506,2]
[373501956,1753023073409,-525.64,0.00019506,2]
[373501957,1753023073419,-1584.4,0.00019506,2]
[373501958,1753023073429,-1464.85,0.00019506,2]
[373501959,1753023073441,-3079.91,0.00019506,2]
[373501960,1753023073451,-538.03,0.00019506,2]
[373501961,1753023073461,-480.0,0.00019506,2]
[373501962,1753023073471,-480.0,0.00019506,2]
[373501963,1753023073481,-1491.88,0.00019506,2]
[373501964,1753023073491,-480.0,0.00019506,2]
[373501965,1753023073502,-5095.81,0.00019506,2]
[373501966,1753023073511,-1198.79,0.00019506,2]
[373501967,1753023073521,-684.48,0.00019506,2]
[373501968,1753023073532,-1512.34,0.00019506,2]
[373501969,1753023073542,-2234.12,0.00019506,2]
[373501970,1753023073552,-874.19,0.00019506,2]
[373501971,1753023073563,-1095.59,0.00019506,2]
[373501972,1753023073574,-1392.86,0.00019506,2]
[373501973,1753023073585,-480.0,0.00019506,2]
[373501974,1753023073595,-2254.51,0.00019506,2]
[373501975,1753023073605,-647.05,0.00019506,2]
[373501976,1753023073614,-157.04741748,0.00019506,2]
[373501977,1753023073624,-1490.39,0.00019506,2]
[373501978,1753023073633,-3528.98,0.00019506,2]
[373501979,1753023073643,-480.0,0.00019506,2]
[373501980,1753023073654,-280.0,0.00019506,2]
[373501981,1753023073664,-5238.44,0.00019506,2]
[373501982,1753023073674,-480.0,0.00019506,2]
[373501983,1753023073685,-3011.55,0.00019506,2]
[373501984,1753023073695,-480.0,0.00019506,2]
[373501985,1753023073705,-946.79,0.00019506,2]
[373501986,1753023073716,-254.03318649,0.00019506,2]
[373501987,1753023073727,-480.0,0.00019506,2]
[373501988,1753023073737,-480.0,0.00019506,2]
[373501989,1753023073748,-2146.12,0.00019506,2]
[373501990,1753023073759,-480.0,0.00019506,2]
[373501991,1753023073770,-480.0,0.00019506,2]
[373501992,1753023073780,-693.78,0.00019506,2]
[373501993,1753023073792,-1303.75,0.00019506,2]
[373501994,1753023073803,-746.84,0.00019506,2]
[373501995,1753023073815,-480.0,0.00019506,2]
[373501996,1753023073825,-2083.94,0.00019506,2]
[373501997,1753023073836,-1076.0,0.00019506,2]
[373501998,1753023073846,-480.0,0.00019506,2]
[373501999,1753023073857,-480.0,0.00019506,2]
[373502000,1753023073869,-830.51,0.00019506,2]
[373502001,1753023073879,-548.5,0.00019506,2]
[373502002,1753023073890,-480.0,0.00019506,2]
[373502003,1753023073901,-573.77,0.00019506,2]
[373502004,1753023073911,-765.69,0.00019506,2]
[373502005,1753023073921,-250.0,0.00019514,2]
[373502006,1753023073932,-1000.0,0.00019514,2]
[373502007,1753023073942,-300.0,0.00019514,2]
[373502008,1753023073952,-2500.0,0.00019514,2]
[373502009,1753023073963,-1112.70010299,0.00019516,2]
[373502010,1753023073973,-483.89973,0.0001953,2]
[373502011,1753023073984,-3352.0,0.00019537,2]
[373502012,1753023073994,-431.743,0.00019537,2]
[373502013,1753023074004,-866.002,0.00019537,2]
[373502014,1753023074014,-150.0,0.00019537,2]
[373502015,1753023074024,-168.0,0.00019564,2]
[373502016,1753023074034,-1112.70010299,0.00019589,2]
[373502017,1753023074044,-250.0,0.00019591,2]
[373502018,1753023074054,-1000.0,0.00019591,2]
[373502019,1753023074065,-300.0,0.00019591,2]
[373502020,1753023074075,-1000.0,0.000196,7]
[373502021,1753023074086,-480.0,0.00019604,2]
[373502022,1753023074096,-480.0,0.00019604,2]
[373502023,1753023074107,-500.0,0.00019615,2]
[373502024,1753023074118,-500.0,0.00019615,2]
[373502025,1753023074130,-2799.69,0.00019615,2]
[373502026,1753023074142,-4165.45,0.00019615,2]
[373502027,1753023074152,-525.64,0.00019615,2]
[373502028,1753023074163,-151.0,0.00019616,2]
[373502029,1753023074174,-480.0,0.00019616,2]
[373502030,1753023074184,-480.0,0.00019616,2]
[373502031,1753023074194,-480.0,0.00019616,2]
[373502032,1753023074204,-284.4,0.00019616,2]
[373502033,1753023074214,-480.0,0.00019616,2]
[373502034,1753023074224,-172.69,0.00019616,2]
[373502035,1753023074235,-480.0,0.00019616,2]
[373502036,1753023074245,-480.0,0.00019616,2]
[373502037,1753023074255,-480.0,0.00019616,2]
[373502038,1753023074265,-480.0,0.00019616,2]
[373502039,1753023074275,-480.0,0.00019616,2]
[373502040,1753023074286,-480.0,0.00019616,2]
[373502041,1753023074296,-480.0,0.00019616,2]
[373502042,1753023074306,-480.0,0.00019616,2]
[373502043,1753023074317,-480.0,0.00019616,2]
[373502044,1753023074327,-480.0,0.00019616,2]
[373502045,1753023074337,-480.0,0.00019616,2]
[373502046,1753023074347,-480.0,0.00019616,2]
[373502047,1753023074359,-480.0,0.00019616,2]
[373502048,1753023074370,-480.0,0.00019616,2]
[373502049,1753023074380,-236.0,0.00019616,2]
[373502050,1753023074390,-480.0,0.00019616,2]
[373502051,1753023074401,-480.0,0.00019616,2]
[373502052,1753023074411,-477.34,0.00019616,2]
[373502053,1753023074422,-480.0,0.00019616,2]
[373502054,1753023074435,-480.0,0.00019616,2]
[373502055,1753023074446,-498.96686886,0.00019616,2]
[373502056,1753023074457,-480.0,0.00019616,2]
[373502057,1753023074467,-480.0,0.00019616,2]
[373502058,1753023074479,-480.0,0.00019616,2]
[373502059,1753023074489,-480.0,0.00019616,2]
[373502060,1753023074500,-622.39,0.00019616,2]
[373502061,1753023074511,-480.0,0.00019616,2]
[373502062,1753023074522,-340.0,0.00019616,2]
[373502063,1753023074533,-480.0,0.00019616,2]
[373502064,1753023074543,-480.0,0.00019616,2]
[373502065,1753023074553,-1977.97,0.00019616,2]
[373502066,1753023074564,-480.0,0.00019616,2]
[373502067,1753023074574,-1256.49,0.00019616,2]
[373502068,1753023074584,-480.0,0.00019616,2]
[373502069,1753023074594,-1424.54,0.00019616,2]
[373502070,1753023074605,-480.0,0.00019616,2]
[373502071,1753023074615,-938.72,0.00019616,2]
[373502072,1753023074625,-803.35,0.00019616,2]
[373502073,1753023074636,-480.0,0.00019616,2]
[373502074,1753023074646,-257.3,0.00019616,2]
[373502075,1753023074657,-1290.04,0.00019616,2]
[373502076,1753023074667,-522.3,0.00019616,2]
[373502077,1753023074677,-240.0,0.00019616,2]
[373502078,1753023074687,-1202.38,0.00019616,2]
[373502079,1753023074698,-480.0,0.00019616,2]
[373502080,1753023074708,-1083.85,0.00019616,2]
[373502081,1753023074718,-480.0,0.00019616,2]
[373502082,1753023074729,-480.0,0.00019616,2]
[373502083,1753023074741,-511.75,0.00019616,2]
[373502084,1753023074751,-480.0,0.00019616,2]
[373502085,1753023074761,-2185.88,0.00019616,2]
[373502086,1753023074771,-554.71,0.00019616,2]
[373502087,1753023074782,-480.0,0.00019616,2]
[373502088,1753023074793,-869.3,0.00019616,2]
[373502089,1753023074803,-507.04,0.00019616,2]
[373502090,1753023074815,-653.65,0.00019616,2]
[373502091,1753023074825,-480.0,0.00019616,2]
[373502092,1753023074835,-480.0,0.00019616,2]
[373502093,1753023074845,-480.0,0.00019616,2]
[373502094,1753023074855,-1071.46,0.00019616,2]
[373502095,1753023074866,-543.21,0.00019616,2]
[373502096,1753023074876,-991.85,0.00019616,2]
[373502097,1753023074887,-480.0,0.00019616,2]
[373502098,1753023074899,-480.0,0.00019616,2]
[373502099,1753023074909,-488.46,0.00019616,2]
[373502100,1753023074919,-480.0,0.00019616,2]
[373502101,1753023074929,-618.23,0.00019616,2]
[373502102,1753023074940,-1174.52,0.00019616,2]
[373502103,1753023074950,-753.24,0.00019616,2]
[373502104,1753023074960,-480.0,0.00019616,2]
[373502105,1753023074970,-480.0,0.00019616,2]
[373502106,1753023074981,-480.0,0.00019616,2]
[373502107,1753023074991,-534.81,0.00019616,2]
[373502108,1753023075001,-591.97,0.00019616,2]
[373502109,1753023075011,-792.68,0.00019616,2]
[373502110,1753023075022,-480.0,0.00019616,2]
[373502111,1753023075032,-624.36,0.00019616,2]
[373502112,1753023075042,-2018.65,0.00019616,2]
[373502113,1753023075053,-798.52,0.00019616,2]
[373502114,1753023075066,-480.0,0.00019616,2]
[373502115,1753023075077,-888.45,0.00019616,2]
[373502116,1753023075087,-3325.96,0.00019616,2]
[373502117,1753023075098,-480.0,0.00019616,2]
[373502118,1753023075108,-480.0,0.00019616,2]
[373502119,1753023075119,-1087.28,0.00019616,2]
[373502120,1753023075129,-1363.88,0.00019616,2]
[373502121,1753023075140,-1469.33,0.00019616,2]
[373502122,1753023075150,-397.48212,0.00019616,2]
[373502123,1753023075160,-506.8,0.00019616,2]
[373502124,1753023075170,-480.0,0.00019616,2]
[373502125,1753023075180,-2583.77,0.00019616,2]
[373502126,1753023075190,-613.46,0.00019616,2]
[373502127,1753023075201,-480.0,0.00019616,2]
[373502128,1753023075211,-480.0,0.00019616,2]
[373502129,1753023075222,-480.0,0.00019616,2]
[373502130,1753023075232,-542.22,0.00019616,2]
[373502131,1753023075242,-480.0,0.00019616,2]
[373502132,1753023075252,-480.0,0.00019616,2]
[373502133,1753023075263,-1514.34,0.00019616,2]
[373502134,1753023075275,-590.38,0.00019616,2]
[373502135,1753023075286,-480.0,0.00019616,2]
[373502136,1753023075296,-11386.56,0.00019616,2]
[373502137,1753023075307,-11386.56,0.00019616,2]
[373502138,1753023075318,-1253.44,0.00019616,2]
[373502139,1753023075329,-1059.06,0.00019616,2]
[373502140,1753023075339,-14488.76,0.00019616,2]
[373502141,1753023075349,-1043.44,0.00019616,2]
[373502142,1753023075362,-637.25,0.00019616,2]
[373502143,1753023075373,-4749.01,0.00019616,2]
[373502144,1753023075383,-480.0,0.00019616,2]
[373502145,1753023075394,-1476.94,0.00019616,2]
[373502146,1753023075404,-491.501792,0.00019616,2]
[373502147,1753023075414,-480.0,0.00019616,2]
[373502148,1753023075424,-480.0,0.00019616,2]
[373502149,1753023075436,-467.071967,0.00019616,2]
[373502150,1753023075447,-1107.67,0.00019616,2]
[373502151,1753023075456,-480.0,0.00019616,2]
[373502152,1753023075467,-480.0,0.00019616,2]
[373502153,1753023075477,-755.19,0.00019616,2]
[373502154,1753023075487,-780.01,0.00019616,2]
[373502155,1753023075497,-671.53,0.00019616,2]
[373502156,1753023075507,-688.06,0.00019616,2]
[373502157,1753023075518,-675.43,0.00019616,2]
[373502158,1753023075528,-480.0,0.00019616,2]
[373502159,1753023075538,-365.14,0.00019616,2]
[373502160,1753023075549,-480.0,0.00019616,2]
[373502161,1753023075562,-1093.35,0.00019616,2]
[373502162,1753023075572,-480.0,0.00019616,2]
[373502163,1753023075582,-3695.05,0.00019616,2]
[373502164,1753023075592,-480.0,0.00019616,2]
[373502165,1753023075602,-766.96,0.00019616,2]
[373502166,1753023075612,-480.0,0.00019616,2]
[373502167,1753023075622,-376.86,0.00019616,2]
[373502168,1753023075632,-510.78,0.00019616,2]
[373502169,1753023075642,-1546.01,0.00019616,2]
[373502170,1753023075652,-480.0,0.00019616,2]
[373502171,1753023075662,-485.88,0.00019616,2]
[373502172,1753023075672,-480.0,0.00019616,2]
[373502173,1753023075682,-480.0,0.00019616,2]
[373502174,1753023075693,-970.09,0.00019616,2]
[373502175,1753023075703,-480.0,0.00019616,2]
[373502176,1753023075713,-480.0,0.00019616,2]
[373502177,1753023075724,-480.0,0.00019616,2]
[373502178,1753023075734,-480.0,0.00019616,2]
[373502179,1753023075744,-1270.94,0.00019616,2]
[373502180,1753023075754,-480.0,0.00019616,2]
[373502181,1753023075764,-480.0,0.00019616,2]
[373502182,1753023075774,-480.0,0.00019616,2]
[373502183,1753023075783,-522.1,0.00019616,2]
[373502184,1753023075793,-616.17,0.00019616,2]
[373502185,1753023075803,-1951.13,0.00019616,2]
[373502186,1753023075813,-480.0,0.00019616,2]
[373502187,1753023075822,-448.84841749,0.00019616,2]
[373502189,1753023157689,6300.0,0.00030137,120]
[373502190,1753023219677,163.63,0.000229,31]
[373502191,1753023219762,163.63,0.000229,31]
[373502194,1753023387735,150.5,0.0002609,120]
[373502195,1753023388180,150.5,0.0002608,120]
[373502196,1753023388612,245.0,0.0002607,120]
[373502197,1753023451331,597.29,0.00025136,120]
[373502198,1753023451542,597.29,0.00027421,120]
[373502203,1753023630732,155.46,0.00013699,2]
[373502207,1753023728216,250.0,0.00015,2]
[373502209,1753023843644,2000.0,0.00017725,120]
[373502212,1753023942139,-250.0,0.00017241,2]
[373502213,1753023942161,-184.18370408,0.00017313,2]
[373502214,1753023942183,-1.69460935,0.00017356,2]
[373502216,1753023972195,-287.28682014,0.00017269,2]
[373502219,1753024005158,1014.88,0.00030137,120]
[373502220,1753024025113,-358.89700686,0.00017269,2]
[373502221,1753024025136,-298.30539065,0.00017356,2]
[373502222,1753024025159,-250.0,0.00017378,2]
[373502223,1753024025183,-300.0,0.00017378,2]
[373502224,1753024025205,-153.38686599,0.00017432,2]
[373502225,1753024025228,-2137.76815226,0.00017446,2]
[373502227,1753024130270,-227.51197143,0.0001658,2]
[373502228,1753024132332,-273.90065805,0.0001658,2]
[373502229,1753024135007,-12.58737052,0.0001658,2]
[373502230,1753024146927,-235.52145843,0.00017222,2]
[373502231,1753024151675,-71.25227356,0.00017222,2]
[373502232,1753024151708,-161.86834965,0.0001725,2]
[373502233,1753024161148,-280.03,0.00017323,2]
[373502234,1753024161170,-2103.07,0.00017323,2]
[373502235,1753024161190,-250.0,0.00017351,2]
[373502236,1753024161212,-25945.22,0.00017353,2]
[373502237,1753024161233,-1500.0,0.00017358,2]
[373502238,1753024161254,-164.8,0.00017361,2]
[373502239,1753024161275,-300.0,0.00017445,2]
[373502240,1753024161297,-300.0,0.00017445,2]
[373502241,1753024161319,-21762.23184774,0.00017446,2]
[373502242,1753024161341,-162.78,0.00017495,2]
[373502243,1753024161363,-312.0,0.000175,2]
[373502244,1753024161384,-162.78,0.00017504,2]
[373502245,1753024161406,-162.78,0.00017514,2]
[373502246,1753024161428,-162.78,0.00017523,2]
[373502247,1753024161452,-265.0,0.00017531,2]
[373502248,1753024161474,-550.0,0.00017531,2]
[373502249,1753024161495,-150.0,0.00017532,2]
[373502250,1753024161515,-150.0,0.00017532,2]
[373502251,1753024161536,-150.77781482,0.00017532,2]
[373502252,1753024161557,-150.0,0.00017532,2]
[373502253,1753024161580,-150.0,0.00017532,2]
[373502254,1753024161604,-150.0,0.00017532,2]
[373502255,1753024161625,-150.0,0.00017532,2]
[373502256,1753024161649,-150.0,0.00017532,2]
[373502257,1753024161670,-150.0,0.00017532,2]
[373502258,1753024161693,-150.0,0.00017532,2]
[373502259,1753024161713,-150.0,0.00017532,2]
[373502260,1753024161737,-152.1215824,0.00017532,2]
[373502261,1753024161758,-150.0,0.00017532,2]
[373502262,1753024161779,-162.78,0.00017532,2]
[373502263,1753024161801,-162.78,0.00017541,2]
[373502264,1753024161823,-162.78,0.0001755,2]
[373502265,1753024161844,-162.78,0.0001756,2]
[373502266,1753024161867,-162.78,0.00017569,2]
[373502267,1753024161888,-162.78,0.00017578,2]
[373502268,1753024161911,-162.78,0.00017587,2]
[373502269,1753024161932,-162.78,0.00017596,2]
[373502270,1753024161953,-162.78,0.00017606,2]
[373502271,1753024161974,-222.25185909,0.00017613,2]
[373502278,1753024185383,315.15927901,0.000211,28]
[373502289,1753024231532,-724.94,0.00017337,2]
[373502290,1753024231542,-332.04,0.00017348,2]
[373502291,1753024231552,-92.10260238,0.0001748,2]
[373502292,1753024231574,-207.89739762,0.0001748,2]
[373502293,1753024231583,-899.99825406,0.00017613,2]
[373502294,1753024231596,-2414.33141237,0.00017613,2]
[373502295,1753024231605,-162.78,0.00017615,2]
[373502296,1753024231615,-162.78,0.00017624,2]
[373502297,1753024231625,-162.78,0.00017633,2]
[373502298,1753024231635,-1000.0,0.00017635,2]
[373502299,1753024231644,-1389.94,0.00017639,2]
[373502300,1753024231654,-162.78,0.00017642,2]
[373502301,1753024231664,-162.78,0.00017652,2]
[373502302,1753024231676,-150.0,0.00017657,2]
[373502303,1753024231686,-162.78,0.00017661,2]
[373502304,1753024231695,-162.78,0.0001767,2]
[373502305,1753024231706,-1200.0,0.00017705,2]
[373502306,1753024231716,-2751.0,0.00017706,2]
[373502307,1753024231727,-613.91,0.00017721,2]
[373502308,1753024231736,-150.0,0.00017921,2]
[373502309,1753024231748,-150.0,0.00017921,2]
[373502310,1753024231758,-200.0,0.00017944,2]
[373502311,1753024231767,-2158.4,0.0001795,2]
[373502312,1753024231777,-205.02,0.00017994,2]
[373502313,1753024231787,-15867.90370375,0.00018,2]
[373502314,1753024231796,-110.03488388,0.00018015,2]
[373502315,1753024231809,-39.96511612,0.00018015,2]
[373502316,1753024231819,-1013.14631983,0.00018017,2]
[373502317,1753024231831,-318.18604314,0.00018017,2]
[373502318,1753024231843,-585.88327243,0.00018017,2]
[373502319,1753024231856,-2252.7143646,0.00018017,2]
[373502320,1753024231866,-6328.22781689,0.00018033,2]
[373502321,1753024231876,-1902.27,0.00018139,2]
[373502322,1753024231885,-1654.58336849,0.00018157,2]
[373502323,1753024231895,-167.01,0.00018164,2]
[373502324,1753024231905,-150.0,0.00018181,2]
[373502325,1753024231914,-2802.64,0.00018185,2]
[373502326,1753024231924,-666.0,0.00018185,2]
[373502327,1753024231933,-430.59,0.00018185,2]
[373502328,1753024231943,-724.94,0.00018204,2]
[373502329,1753024231953,-506.77,0.00018263,2]
[373502330,1753024231962,-272.27,0.00018263,2]
[373502331,1753024231971,-597.29,0.00018281,2]
[373502332,1753024231981,-150.0,0.00018311,2]
[373502333,1753024231991,-150.0,0.00018311,2]
[373502335,1753024232000,-332.73,0.00018329,2]
[373502337,1753024232009,-528.82,0.00018377,2]
[373502339,1753024232019,-150.0,0.00018417,2]
[373502341,1753024232029,-150.0,0.00018505,2]
[373502342,1753024232039,-150.0,0.00018505,2]
[373502344,1753024232048,-150.0,0.00018505,2]
[373502346,1753024232057,-334.0,0.00018617,2]
[373502348,1753024232067,-150.0,0.000187,2]
[373502350,1753024232076,-150.0,0.000187,2]
[373502351,1753024232292,-4730.34445433,0.00018721,2]
[373502353,1753024232761,-2412.51154567,0.00018721,2]
[373502354,1753024232771,-231.28369723,0.00018721,2]
[373502355,1753024232781,-8635.36397329,0.0001877,2]
[373502356,1753024232790,-305.0,0.0001878,2]
[373502357,1753024232800,-7552.35,0.000188,2]
[373502358,1753024232810,-150.0,0.0001883,2]
[373502359,1753024232819,-4156.97189689,0.00018881,2]
[373502360,1753024232828,-200.0,0.0001889,2]
[373502361,1753024232837,-279.89969645,0.0001889,2]
[373502363,1753024232847,-279.89969645,0.00018894,2]
[373502365,1753024232857,-10957.75104309,0.00018895,2]
[373502368,1753024232878,-7160.0,0.00018895,2]
[373502371,1753024232894,-5962.8136902,0.00018895,2]
[373502374,1753024232915,-11835.44697845,0.00018895,2]
[373502376,1753024232925,-1.55302155,0.00018899,2]
[373502379,1753024232940,-2064.76368793,0.00018899,2]
[373502380,1753024232952,-377.42508862,0.00018899,2]
[373502381,1753024232963,-1713.23009879,0.00018899,2]
[373502382,1753024232973,-7552.35,0.000189,2]
[373502383,1753024232982,-646.86842975,0.000189,2]
[373502384,1753024232991,-169.81914257,0.00018904,2]
[373502385,1753024233000,-165.88294431,0.00018904,2]
[373502386,1753024233010,-2701.39985644,0.00018924,2]
[373502387,1753024233022,-1455.57204045,0.00018924,2]
[373502388,1753024233032,-3629.01818759,0.00018933,2]
[373502389,1753024233043,-646.86842951,0.00018934,2]
[373502390,1753024233053,-314.30839363,0.00018935,2]
[373502391,1753024233063,-970.49639434,0.0001894,2]
[373502392,1753024233073,-314.30839363,0.00018945,2]
[373502393,1753024233082,-3629.01818759,0.00018966,2]
[373502394,1753024233092,-646.86842951,0.00018969,2]
[373502395,1753024233104,-35916.01171174,0.00018972,2]
[373502396,1753024233113,-150.92181613,0.00018978,2]
[373502397,1753024233123,-35916.01171174,0.0001898,2]
[373502398,1753024233132,-200.0,0.00018983,2]
[373502399,1753024233142,-970.49639434,0.00018985,2]
[373502400,1753024233151,-279.89969645,0.00018987,2]
[373502401,1753024233161,-314.30839363,0.00018987,2]
[373502402,1753024233170,-3629.01818759,0.0001899,2]
[373502403,1753024233180,-970.49639434,0.00018992,2]
[373502404,1753024233189,-1551.27726061,0.00018992,2]
[373502405,1753024233199,-7552.35,0.00019,2]
[373502406,1753024233208,-1000.0,0.00019,2]
[373502407,1753024233217,-6819.387753,0.00019,2]
[373502408,1753024233228,-855.81683533,0.00019,2]
[373502409,1753024233240,-434.785,0.00019,2]
[373502410,1753024233266,-750.81041459,0.00019,2]
[373502411,1753024233277,-544.8875,0.00019,2]
[373502412,1753024233288,-740.18928,0.00019,2]
[373502413,1753024233300,-5465.18602929,0.00019,2]
[373502414,1753024233311,-2199.57315704,0.00019,2]
[373502415,1753024233326,-568.29956451,0.00019,2]
[373502416,1753024233342,-2958.69846,0.00019,2]
[373502421,1753024237580,-1460.92,0.00019,2]
[373502422,1753024237592,-23362.792148,0.00019,2]
[373502423,1753024237604,-542.53875348,0.00019,2]
[373502424,1753024237698,-3479.55916564,0.00019,2]
[373502425,1753024237810,-670.685088,0.00019,2]
[373502426,1753024237822,-3609.71715603,0.00019,2]
[373502427,1753024237834,-288.88777102,0.00019,2]
[373502428,1753024237845,-714.46728702,0.00019,2]
[373502458,1753024238237,-655.00000018,0.00019,2]
[373502461,1753024238253,-1135.59208121,0.00019,2]
[373502463,1753024238265,-1145.96287824,0.00019,2]
[373502609,1753024239618,-293.93629405,0.00019,2]
[373502624,1753024239753,-9.92092341,0.00019,2]
[373502627,1753024239765,-2115.871295,0.00019,2]
[373502629,1753024239777,-1605.60064738,0.00019,2]
[373502631,1753024239788,-6857.24868507,0.00019,2]
[373502633,1753024239799,-128841.61696941,0.00019,2]
[373502636,1753024239818,-754.30440695,0.00019,2]
[373502639,1753024239832,-2221.71,0.00019,2]
[373502641,1753024239843,-1880.89665178,0.00019,2]
[373502643,1753024239855,-469.49312796,0.00019,2]
[373502645,1753024239866,-675.13488109,0.00019,2]
[373502647,1753024239878,-426.8289909,0.00019,2]
[373502648,1753024239889,-314.061,0.00019,2]
[373502649,1753024239915,-500.0,0.00019,2]
[373502650,1753024239926,-3564.21560504,0.00019,2]
[373502651,1753024239937,-5265.23234538,0.00019,2]
[373502652,1753024239954,-1715.80014011,0.00019,2]
[373502653,1753024239965,-2974.84669209,0.00019,2]
[373502659,1753024240063,-5878.0,0.00019,2]
[373502661,1753024240075,-416.08539783,0.00019,2]
[373502663,1753024240087,-6318.75367203,0.00019,2]
[373502665,1753024240098,-3534.9,0.00019,2]
[373502668,1753024240115,-1398.12011477,0.00019,2]
[373502670,1753024240126,-3174.96572699,0.00019,2]
[373502672,1753024240138,-1177.0,0.00019,2]
[373502951,1753024242584,-10882.62609717,0.00019,2]
[373502955,1753024242595,-854.28035819,0.00019,2]
[373502962,1753024242624,-538.5,0.00019,2]
[373502966,1753024242635,-49571.51906342,0.00019,2]
[373502969,1753024242647,-1176.83059905,0.00019,2]
[373502972,1753024242659,-5887.5,0.00019,2]
[373502980,1753024242723,-398.63318199,0.00019,2]
[373502982,1753024242734,-358.27,0.00019,2]
[373503017,1753024243260,-11857.77946995,0.00019,2]
[373503020,1753024243284,-382.98402456,0.00019,2]
[373503023,1753024243303,-2518.4207,0.00019,2]
[373503025,1753024243315,-23556.1252,0.00019,2]
[373503028,1753024243331,-41322.01409787,0.00019,2]
[373503030,1753024243342,-4064.22125363,0.00019,2]